Cogmind - Beta 13 @@@ ROGUE MODE // 2024.05.07 @ 23:59:36 Player: P9H Result: Destroyed by G-47 Trooper with Particle Gun Performance ------------- Evolutions (3) 1500 Regions Visited (5) 1000 Robots Destroyed (25) 125 Value Destroyed (545) 545 Prototype IDs (0) 0 Alien Tech Used (0) 0 Bonus (0) 0 TOTAL SCORE: 3170 Bonus ------- None Cogmind --------- Core Integrity 0/700 Matter 229/300 Energy 13/100 System Corruption 0% Temperature Cool (78) Movement Core (700) Ox13 Location -7/Lower Caves Parts ------- > --- POWER (2) -------- (None) > --- PROPULSION (3) --- (None) > --- UTILITY (4) ------ High-capacity Storage Unit > --- WEAPON (4) ------- Mace > --- INVENTORY (20) --- Xenon Bombardment Thruster Heat Sink Small Storage Unit Improved Medium Armor Plating Medium Reactive Plating Heavy Flail Peak State ------------ > --- POWER ------------ (None) > --- PROPULSION ------- Aluminum Leg Aluminum Leg Aluminum Leg > --- UTILITY ---------- High-capacity Storage Unit Targeting Computer Melee Analysis Suite Hardlight Generator > --- WEAPON ----------- Heavy Particle Cannon High-powered Shotgun Proton Missile Launcher Proton Missile Launcher > --- INVENTORY -------- Aluminum Leg Improved Aluminum Leg Xenon Bombardment Thruster Heat Sink Improved Heat Sink Small Storage Unit Heavy Armor Plating Improved Light Armor Plating Improved Medium Armor Plating Medium Reactive Plating Beam Rifle Particle Gun Proton Missile Launcher Mace Heavy Flail [Rating: 29] Favorites ----------- Power Ion Engine Engine Ion Engine Power Core Light Nuclear Core Propulsion Aluminum Leg Treads Light Treads Leg Aluminum Leg Wheel Wheel Utility High-capacity Storage Unit Device Hardlight Generator Storage High-capacity Storage Unit Processor Melee Analysis Suite Protection Scrap Shield Weapon Proton Missile Launcher Energy Gun Beam Rifle Energy Cannon Heavy Particle Cannon Ballistic Gun Light Assault Rifle Launcher Proton Missile Launcher Impact Weapon Mace Build | -11 -10 -10 -8 -7 -7 ------- Run | Yrd Mat Sub Mat Fac Low Slots Evolved 6 | . . . 4 2 . Power 1 | . . . 1 . . Propulsion 1 | . . . 1 . . Utility 2 | . . . 1 1 . Weapon 2 | . . . 1 1 . Parts Attached 42 | 6 1 1 21 4 9 Power 5 | 1 . . 4 . . Engine 4 | 1 . . 3 . . Core 1 | . . . 1 . . Reactor . | . . . . . . Propulsion 9 | 2 . . 5 . 2 Treads 2 | 2 . . . . . Leg 5 | . . . 3 . 2 Wheel 2 | . . . 2 . . Hover . | . . . . . . Flight . | . . . . . . Utility 10 | 1 . . 5 1 3 Device 3 | . . . 2 . 1 Storage 2 | 1 . . 1 . . Processor 2 | . . . 1 1 . Hackware . | . . . . . . Protection 3 | . . . 1 . 2 Artifact . | . . . . . . Weapon 18 | 2 1 1 7 3 4 Energy Gun 5 | . . . 3 . 2 Energy Cannon 1 | . . . 1 . . Ballistic Gun 5 | 2 . 1 1 1 . Ballistic Cannon . | . . . . . . Launcher 4 | . 1 . . 2 1 Special Weapon . | . . . . . . Impact Weapon 3 | . . . 2 . 1 Slashing Weapon . | . . . . . . Piercing Weapon . | . . . . . . Special Melee Weapon . | . . . . . . Unidentified Prototypes . | . . . . . . Parts Lost 30 | . . . 12 . 18 Power 5 | . . . 5 . . Propulsion 7 | . . . 2 . 5 Utility 7 | . . . 1 . 6 Weapon 11 | . . . 4 . 7 Highest Loss Streak 18 | . . . 9 . 18 To Critical Strikes . | . . . . . . Average Slot Usage (%) 80 | . 85 85 78 84 68 Engine 5 | . 14 14 5 . . Treads 8 | . 28 28 4 . . Leg 14 | . . . 15 23 16 Wheel 2 | . . . 5 . . Device 4 | . . . 5 7 4 Storage 9 | . 14 14 9 7 7 Processor 7 | . . . 5 15 11 Protection 1 | . . . 2 . 2 Energy Gun 4 | . . . 8 3 1 Energy Cannon 2 | . . . . 7 5 Ballistic Gun 8 | . 22 14 4 7 5 Launcher 6 | . 5 14 2 11 10 Impact Weapon 3 | . . . 8 . . Naked Turns . | . . . . . . Heaviest Build 75 | 13 15 15 75 68 68 Greatest Support 40 | 40 40 40 40 30 30 Greatest Overweight (x) 13 | . . . 3 2 13 Average Overweight (x) . | . . . 1 1 2 Largest Inventory Capacity 20 | 8 8 8 20 20 20 Average Capacity 15 | 6 8 8 17 20 20 Most Carried 16 | 6 7 8 12 16 16 Average Carried 8 | 5 6 7 5 14 13 Final Capacity 20 | 8 8 8 20 20 20 Final Carried 16 | 6 7 8 12 16 6 Class Distribution -------------------- 37% | Mutant 27% | Gunner 18% | Gladiator 12% | Tank 4% | Bomber Dominant Class ---------------- Mutant | -10/Materials Mutant | -10/Subcaves Gladiator | -8/Materials Gunner | -7/Factory Bomber | -7/Lower Caves Resources | -11 -10 -10 -8 -7 -7 ----------- Run | Yrd Mat Sub Mat Fac Low Matter Collected 661 | 255 86 66 254 . . Remotely . | . . . . . . Salvage Created 725 | . 118 . 577 . 30 Parts 37 | . 10 . 25 . 2 Haulers Intercepted 1 | . . . 1 . . Recyclers Shooed . | . . . . . . Parts Field Recycled . | . . . . . . Retrieved Matter . | . . . . . . Parts Self-Destructed 5 | . . 2 . . 3 Prevented 1 | . . . . . 1 Kills | -11 -10 -10 -8 -7 -7 ------- Run | Yrd Mat Sub Mat Fac Low Combat Hostiles Destroyed 17 | . 7 . 9 . 1 Melee 1 | . . . 1 . . Guns 9 | . 3 . 5 . 1 Cannons 1 | . . . 1 . . AOE 6 | . 4 . 2 . . Classes Destroyed 8 | . 3 . 5 . . Worker 6 | . 1 . 5 . . Hauler 1 | . . . 1 . . Recycler 1 | . . . 1 . . Swarmer 7 | . 6 . . . 1 Grunt 7 | . 1 . 6 . . Brawler 1 | . . . 1 . . Duelist 1 | . . . 1 . . Sentry 1 | . . . 1 . . Best Kill Streak 5 | . 4 . 5 . 1 Combat Bots Only 4 | . 4 . 3 . 1 Max Kills in Single Turn 2 | . 2 . 2 . 1 Gunslinging . | . . . . . . Exploded 2 | . 2 . 1 . . Melee 1 | . . . 1 . . Uniques/NPCs Destroyed . | . . . . . . Combat | -11 -10 -10 -8 -7 -7 -------- Run | Yrd Mat Sub Mat Fac Low Hostile Shots Fired 367 | . 52 . 118 . 197 Missed 79 | . 15 . 26 . 38 Damage Taken 4436 | . 399 . 1585 . 2452 Core 1122 | . 71 . 338 . 713 Absorbed by Shields . | . . . . . . Core Remaining (%) 69 | 100 . 71 38 . . Volleys Fired 67 | . 21 . 37 . 9 Largest 3 | . 2 . 3 . 3 Hottest 139 | . 50 . 121 . 139 Shots Fired 125 | . 40 . 73 . 12 Gun 109 | . 35 . 65 . 9 Cannon 2 | . . . . . 2 Launcher 14 | . 5 . 8 . 1 Special . | . . . . . . Kinetic 72 | . 35 . 33 . 4 Thermal 39 | . . . 32 . 7 Explosive 13 | . 5 . 8 . . Electromagnetic 1 | . . . . . 1 Robot Hit Streak 9 | . 3 . 9 . 5 Robot Miss Streak 5 | . 5 . 4 . 4 Penetration Max . | . . . . . . Secondary Targets 2 | . 1 . 1 . . Max Gunslinging Chain 1 | . 1 . 1 . . Shots Hit Robots 77 | . 13 . 59 . 5 Core Hits 51 | . 12 . 35 . 4 Critical Kills . | . . . . . . Critical Parts Destroyed 1 | . . . 1 . . Critical Strikes 4 | . . . 4 . . Burn 3 | . . . 3 . . Smash 1 | . . . 1 . . Melee Attacks 19 | . . . 19 . . Impact 19 | . . . 19 . . Slashing . | . . . . . . Piercing . | . . . . . . Sneak Attacks 2 | . . . 2 . . Combat Hostiles . | . . . . . . Follow-up Attacks 2 | . . . 2 . . Damage Inflicted 2286 | . 387 . 1677 . 222 Guns 714 | . 155 . 475 . 84 Cannons 25 | . . . . . 25 Explosions 819 | . 232 . 474 . 113 Melee 697 | . . . 697 . . Ramming 31 | . . . 31 . . Kinetic 347 | . 155 . 180 . 12 Thermal 392 | . . . 295 . 97 Explosive 706 | . 232 . 474 . . Electromagnetic 113 | . . . . . 113 Impact 697 | . . . 697 . . Slashing . | . . . . . . Piercing . | . . . . . . Highest Corruption . | . . . . . . Average Corruption . | . . . . . . Corruption Purged . | . . . . . . Corruption Blocked . | . . . . . . Overload Shots . | . . . . . . Overflow Damage 123 | . . . 123 . . Projectiles . | . . . . . . Explosions . | . . . . . . Melee 123 | . . . 123 . . Knockbacks 4 | . . . 4 . . Impact 3 | . . . 3 . . Kinetic . | . . . . . . Secondary 1 | . . . 1 . . Self-Inflicted Damage 249 | . 101 . 148 . . Shots 8 | . 3 . 5 . . Rammed 2 | . . . 2 . . Targets Rammed 2 | . . . 2 . . Kicked . | . . . . . . Crushed . | . . . . . . Highest Temperature 316 | . 2 . 316 . 101 Average Temperature 134 | . 2 . 149 . 42 Received Heat Transfer 1365 | . 6 . 828 . 531 Siege Activations . | . . . . . . Robots Corrupted . | . . . . . . Combat Hostiles . | . . . . . . Parts Fried 5 | . . . 5 . . Impact Corruptions 5 | . . . 5 . . Robots Melted . | . . . . . . Combat Hostiles . | . . . . . . Parts Melted 2 | . . . 2 . . Heat Transferred 1184 | . . . 962 . 222 Parts Sabotaged . | . . . . . . Parts Stolen . | . . . . . . Parts Stripped . | . . . . . . Power Chain Reactions . | . . . . . . Alert | -11 -10 -10 -8 -7 -7 ------- Run | Yrd Mat Sub Mat Fac Low Peak Influence 244 | . 244 . 215 60 . Initial 65 | . . . 65 60 . Average 98 | . 112 . 131 52 . Maximum Alert Level 1 | . 1 . 1 . . Low Security (%) 93 | 100 72 . 94 100 . Level 1 6 | . 27 . 5 . . Level 2 . | . . . . . . Level 3 . | . . . . . . Level 4 . | . . . . . . Level 5 . | . . . . . . High Security . | . . . . . . Max Security . | . . . . . . Squads Dispatched 3 | . 1 . 1 1 . Investigation . | . . . . . . Extermination 1 | . . . . 1 . Reinforcement 2 | . 1 . 1 . . Assault . | . . . . . . Garrison . | . . . . . . Intercept . | . . . . . . Searches Triggered . | . . . . . . Construction Impeded . | . . . . . . Haulers Reinforced . | . . . . . . Active Scanning Responses . | . . . . . . Cargo Convoy Interrupts . | . . . . . . Stealth | -11 -10 -10 -8 -7 -7 --------- Run | Yrd Mat Sub Mat Fac Low Distress Signals 1 | . 1 . . . . Communications Jammed . | . . . . . . Distress Signals . | . . . . . . Times Spotted 42 | . 12 2 14 1 13 Peak Tracking Total 13 | . 4 2 4 1 13 Tactical Retreats 2 | . . . 2 . . Traps | -11 -10 -10 -8 -7 -7 ------- Run | Yrd Mat Sub Mat Fac Low Traps Triggered . | . . . . . . Indirectly . | . . . . . . Trap Hack Attempts . | . . . . . . Triggered . | . . . . . . Disarmed . | . . . . . . Reprogrammed . | . . . . . . Reused . | . . . . . . Traps Extracted . | . . . . . . Installed . | . . . . . . Triggered . | . . . . . . Machines | -11 -10 -10 -8 -7 -7 ---------- Run | Yrd Mat Sub Mat Fac Low Machines Disabled . | . . . . . . Max in Single Turn . | . . . . . . Machines Repaired . | . . . . . . Machines Dismantled . | . . . . . . Machines Sabotaged . | . . . . . . Overloaded Fab Kills . | . . . . . . Hacking | -11 -10 -10 -8 -7 -7 --------- Run | Yrd Mat Sub Mat Fac Low Machines Accessed 1 | . 1 . . . . Terminals 1 | . 1 . . . . Fabricators . | . . . . . . Repair Stations . | . . . . . . Recycling Units . | . . . . . . Scanalyzers . | . . . . . . Garrison Access . | . . . . . . Total Hacks 4 | . 4 . . . . Successful 3 | . 3 . . . . Failed 1 | . 1 . . . . Catastrophic 1 | . 1 . . . . Database Lockouts . | . . . . . . Manual . | . . . . . . Terminals 4 | . 4 . . . . Fabricators . | . . . . . . Repair Stations . | . . . . . . Recycling Units . | . . . . . . Scanalyzers . | . . . . . . Garrison Access . | . . . . . . Terminal Hacks 3 | . 3 . . . . Record 3 | . 3 . . . . Fabricator Hacks . | . . . . . . Repair Station Hacks . | . . . . . . Recycling Unit Hacks . | . . . . . . Scanalyzer . | . . . . . . Garrison Access Hacks . | . . . . . . Unauthorized Hacks . | . . . . . . Terminals . | . . . . . . Fabricators . | . . . . . . Repair Stations . | . . . . . . Recycling Units . | . . . . . . Scanalyzers . | . . . . . . Garrison Access . | . . . . . . Data Cores Recovered . | . . . . . . Used . | . . . . . . Hacking Detections . | . . . . . . Full Trace Events . | . . . . . . Feedback Events . | . . . . . . Feedback Blocked . | . . . . . . Robot Schematics Acquired . | . . . . . . Robots Built . | . . . . . . Authchips . | . . . . . . Time . | . . . . . . Total Robot Build Rating . | . . . . . . Part Schematics Acquired . | . . . . . . Parts Built . | . . . . . . Authchips . | . . . . . . Time . | . . . . . . Total Part Build Rating . | . . . . . . Parts Repaired . | . . . . . . Time . | . . . . . . Parts Recycled . | . . . . . . Recycled Matter . | . . . . . . Retrieved Matter . | . . . . . . Retrieved Components . | . . . . . . Parts Scanalyzed . | . . . . . . Part Schematics Acquired . | . . . . . . Parts Damaged . | . . . . . . Bothacking | -11 -10 -10 -8 -7 -7 ------------ Run | Yrd Mat Sub Mat Fac Low Used RIF Installer . | . . . . . . Robots Hacked . | . . . . . . Non-combat . | . . . . . . Combat . | . . . . . . Robot Hacks Applied . | . . . . . . Relay Couplers Released . | . . . . . . Fabnet Peak Effective % . | . . . . . . Robots Rewired . | . . . . . . Allies Hacked . | . . . . . . Hacks Repelled . | . . . . . . Allies | -11 -10 -10 -8 -7 -7 -------- Run | Yrd Mat Sub Mat Fac Low Total Allies . | . . . . . . Largest Group . | . . . . . . Highest-Rated Group . | . . . . . . Highest-Rated Ally . | . . . . . . Total Orders . | . . . . . . Ally Attacks . | . . . . . . Total Damage . | . . . . . . Kills . | . . . . . . Allies Corrupted . | . . . . . . Allies Melted . | . . . . . . Intel | -11 -10 -10 -8 -7 -7 ------- Run | Yrd Mat Sub Mat Fac Low Robot Analysis Total . | . . . . . . Derelict Logs Recovered 1 | . . 1 . . . Drone Launches . | . . . . . . Drone Recoveries . | . . . . . . Exploration | -11 -10 -10 -8 -7 -7 ------------- Run | Yrd Mat Sub Mat Fac Low Turns Passed 1768 | 75 220 149 749 455 120 Spaces Moved 748 | 42 100 92 299 186 29 Core 10 | 8 . . . . 2 Treads 293 | 34 100 92 67 . . Legs 356 | . . . 143 186 27 Wheels 89 | . . . 89 . . Hover . | . . . . . . Flight . | . . . . . . Fastest Speed 50 | 50 160 160 105 190 260 Average Speed 185 | 139 160 160 163 240 300 Slowest Speed 700 | 160 160 160 260 260 700 Overloaded Moves . | . . . . . . Propulsion Burnouts . | . . . . . . Robots Hopped . | . . . . . . Cave-ins Triggered . | . . . . . . Exploration Rate (%) 9 | 4 19 4 19 2 7 Regions Visited 5 Branch Regions 2 Pre-discovered Areas 1 | . . 1 . . . Known Exits Taken . | . . . . . . Unknown Exits Taken 5 | 1 1 1 1 1 . Scrap Searched . | . . . . . . Spaces Dug 6 | . 6 . . . . Terrain Destroyed 80 | . 33 . 47 . . Melee . | . . . . . . Projectile . | . . . . . . AOE 80 | . 33 . 47 . . Terrain Rammed . | . . . . . . Walls Destroyed . | . . . . . . Machines Disabled . | . . . . . . Actions | -11 -10 -10 -8 -7 -7 --------- Run | Yrd Mat Sub Mat Fac Low Total 990 | 56 122 94 467 195 56 Wait 79 | 1 . . 69 . 9 Move 743 | 41 99 91 298 185 29 Hop . | . . . . . . Pick Up 35 | 7 1 1 20 6 . Fast Attach 7 | 6 . . 1 . . Attach 28 | . . 1 16 2 9 Detach 1 | . . . 1 . . Swap 7 | . 1 . 4 2 . Drop 4 | 1 . 1 2 . . Fire 67 | . 21 . 37 . 9 Melee 17 | . . . 17 . . Ram 1 | . . . 1 . . Kick . | . . . . . . Crush 1 | . . . 1 . . Escape Stasis . | . . . . . . Rewire . | . . . . . . Trap . | . . . . . . Miscellaneous . | . . . . . . Route ------- -11/Scrapyard -10/Materials (discovered 2 exits: [*Min] / [*Sub]) -10/Subcaves -8/Materials -7/Factory -7/Lower Caves History --------- Turn | Location | Event 17 | -11/Scrapyard | Discovered new exit (range 16) 76 | -11/Scrapyard | Entered Materials 112 | -10/Materials | Discovered new exit (range 10) 249 | -10/Materials | Discovered new exit (range 4) 296 | -10/Materials | Entered Subcaves 313 | -10/Subcaves | Build established: Mutant 364 | -10/Subcaves | Shifting Twisted Machinery released Piercing Trap 406 | -10/Subcaves | Discovered new exit (range 8) 445 | -10/Subcaves | Entered Materials 445 | -8/Materials | Evolved 4 slots: Power x1, Propulsion x1, Utility x1, Weapon x1 778 | -8/Materials | Lost 9 parts (3p2n1u3w) 859 | -8/Materials | Core integrity fell below 50% 876 | -8/Materials | Lost 3 parts (2p1w) 1055 | -8/Materials | Build established: Gladiator 1190 | -8/Materials | Discovered new exit (range 3) 1194 | -8/Materials | Entered Factory 1194 | -7/Factory | Evolved 2 slots: Utility x1, Weapon x1 1196 | -7/Factory | Discovered new exit (range 16) 1476 | -7/Factory | Build established: Gunner 1649 | -7/Factory | Entered Lower Caves 1712 | -7/Lower Caves | Attracted the attention of an 0b10 base 1749 | -7/Lower Caves | Core integrity fell below 50% 1756 | -7/Lower Caves | Core integrity fell below 20% 1769 | -7/Lower Caves | Destroyed by G-47 Trooper with Particle Gun Last Messages --------------- 01744_ Imp. Light Armor Plating destroyed. 01745_ Proton Missile Launcher destroyed. 01746_ Imp. Aluminum Leg destroyed. 01747_ Aluminum Leg destroyed. 01748_ S-27 Virus IFF system glitched. 01748_ S-27 Virus destroyed. 01748_ Particle Gun destroyed. 01750_ Melee Analysis Suite destroyed. 01751_ Critical hit (Burn: +37). 01757_ Autogun fries itself beyond repair. 01758_ S-27 Virus destroyed. 01760_ Critical hit (Burn: +37). 01761_ S-27 Virus destroyed. 01764_ Hvy. Armor Plating destroyed. 01765_ Lgt. Nuclear Core fries itself beyond repair. 01765_ Imp. Heat Sink destroyed. 01766_ Beam Rifle destroyed. 01766_ Critical hit (Burn: +37). 01767_ Autogun fries itself beyond repair. Map ----- +----------------------------------------------------+ | ?????????????????????????????????????????????????? | | ?????????????????????????????????????????????????? | | ?????????????????????????????????????????????????? | | ?????????????????????????????????????????????????? | | ?????????????????????????????????????????????????? | | ?????????????????????????????????????????????????? | | ?????????????????????????????????????????????????? | | ?????????????????????????????????????????????????? | | ?????????????????????????????????????????????????? | | ?????????????????????????????????????????????????? | | ?????????????????????????????????????????????????? | | ???????????????????????#?????????????????????????? | | ??????????????????????? #????????????????????????? | | ??????????????????????? ##??????????????????????? | | ??????????????????????? #??????????????????????? | | ??????????????????????? #??????????????????????? | | ?????????????????###???# #??????????????????????? | | ?????????????????# ??# ###??###???????????????? | | ?????????????????# ??# # ### ##??????????????? | | ????????????# ???# ?# #??????????????? | | ????????????# ## ## ## ##?????????? | | ????????????# # #?????????? | | ????????????# $ /ggs ?????????????? | | ????????? /g sg#######????#####?????? | | ??????????? " " #%%% #????# ###???? | | ?????????????? """"" ??#[@ #????# ##??? | | ??????????????? ????# #### #?#### ##?? | | ?????????????? ??????# #??# #?# ## #?? | | ????????????? ????????# #??# ### ##? | | ???????????????????????# # #### ## #? | | ???????????????????????# ##? | | ???????????????????????#ggY ####?? | | ?????????????????? = #### ##????? | | ???????????????? #??######## ##?????? | | ???????????????############?????????#######??????? | | ?????????????????????????????????????????????????? | | ?????????????????????????????????????????????????? | | ?????????????????????????????????????????????????? | | ?????????????????????????????????????????????????? | | ?????????????????????????????????????????????????? | | ?????????????????????????????????????????????????? | | ?????????????????????????????????????????????????? | | ?????????????????????????????????????????????????? | | ?????????????????????????????????????????????????? | | ?????????????????????????????????????????????????? | | ?????????????????????????????????????????????????? | | ?????????????????????????????????????????????????? | | ?????????????????????????????????????????????????? | | ?????????????????????????????????????????????????? | | ?????????????????????????????????????????????????? | +----------------------------------------------------+ Best States ------------- Heat Dissipation 48 Energy Generation 19 Energy Capacity 310 Matter Stores 300 Matter Capacity 300 Sight Range 16 Terrain Scan Density 10 Armor Coverage 800 Evasion (%) 50 Targeting Accuracy 5 Melee Accuracy 5 Recoil Reduction 2 Item Schematics ----------------- None Robot Schematics ------------------ None Fabricated ------------ Nothing Alien Tech Used ----------------- None Achievements -------------- Made in Tau Ceti IV Challenges ------------ None Game ------ Seed TargetingMissileRedirector Manual? 0 Play Time 00:22:56 Cumulative 2.7 hours Start 2024.05.07 @ 23:36:24 End 2024.05.07 @ 23:59:36 Sessions 6 Manual Loads 0 Difficulty Rogue Special Mode None Game No. 7 Rogue 7 Adventurer 0 Explorer 0 Win Type - Total 0 Types 0/0/0/0/0/0/0/0/0 Lore% 1 Gallery% 7 Achievement% 6 Wizard Run 0 Options --------- Layout 1 ASCII 0 Keyboard 0 Movement Mouse Keybinds 0 Fullscreen 2 Font 32/SmallcapsGlow Map View 50x35 Zoom Use 0% Tactical HUD 1 Map Filters NONE Filters NONE Steam 1 RUN: 25eb58de-046c-4f06-837d-b33711336198